bitfinex-derivatives/quotes_SOLF0:USTF0_20240824
["timestamp","ask_amount","ask_price","bid_price","bid_amount"]
[1724516177946,7.71,159.4,159.37,0.04551907]
[1724516180340,7.74999778,159.41,159.37,0.04551907]
[1724516180965,7.74999778,159.41,159.37,3.18141907]
[1724516184850,7.74999778,159.41,159.37,0.04551907]
[1724516192847,10.88509778,159.41,159.37,0.04551907]
[1724516193557,10.8453,159.4,159.37,0.04551907]
[1724516194558,7.71,159.38,159.37,0.04551907]
[1724516195158,10.8457,159.38,159.37,0.04551907]
[1724516200460,33.3721,159.4,159.3,11.40930868]
[1724516200655,3.7617,159.4,159.32,7.71]
[1724516200854,3.7617,159.4,159.27,2.5245]
[1724516200855,11.4717,159.4,159.34,7.71]
[1724516201063,3.1357,159.39,159.34,7.71]
[1724516201567,3.18330658,159.38,159.34,7.71]
[1724516204365,3.18330658,159.38,159.32,7.71]
[1724516207460,3.1359,159.37,159.32,7.71]
[1724516210167,3.1361,159.36,159.3,3.1372]
[1724516210374,0.04806277,159.35,159.31,7.71]
[1724516210665,0.04806277,159.35,159.32,7.71]
[1724516212674,0.04806277,159.35,159.34,7.71]
[1724516213566,0.04806277,159.35,159.3,11.40930868]
[1724516213765,0.04806277,159.35,159.31,7.71]
[1724516213966,0.04806277,159.35,159.32,3.1367]
[1724516215074,0.04806277,159.35,159.32,10.8467]
[1724516219681,0.04806277,159.35,159.32,3.1367]
[1724516221076,0.04806277,159.35,159.3,19.11930868]
[1724516221077,0.04806277,159.35,159.31,3.137]
[1724516229286,0.04806277,159.35,159.32,3.1369]
[1724516230189,0.04806277,159.35,159.32,10.8469]
[1724516231087,0.04806277,159.35,159.32,3.1369]
[1724516235995,0.04806277,159.35,159.31,3.137]
[1724516246106,0.04806277,159.35,159.32,3.1369]
[1724516247205,0.04806277,159.35,159.34,3.1365]
[1724516247410,30.84,159.48,159.33,7.71]
[1724516247599,2.6317,159.51,159.38,7.71]
[1724516247800,7.71,159.45,159.38,7.71]
[1724516248007,7.71,159.45,159.38,10.8456]
[1724516248517,0.04224093,159.43,159.4,0.04069679]
[1724516252704,0.04224093,159.43,159.4,3.17599679]
[1724516254612,0.04224093,159.43,159.4,0.04069679]
[1724516255308,0.04224093,159.43,159.41,3.135]
[1724516256303,0.04224093,159.43,159.42,3.1349]
[1724516261525,0.04224093,159.43,159.41,3.1351]
[1724516264512,0.04224093,159.43,159.42,3.1349]
[1724516264714,0.04224093,159.43,159.4,1.24999679]
[1724516265220,0.04224093,159.43,159.41,3.135]
[1724516265719,7.75224093,159.43,159.41,3.135]
[1724516267121,7.75224093,159.43,159.4,1.24999679]
[1724516267122,0.04224093,159.43,159.42,3.1349]
[1724516278123,0.04224093,159.43,159.41,4.4492]
[1724516281932,0.04224093,159.43,159.4,0.04069679]
[1724516282725,0.04224093,159.43,159.4,3.17599679]
[1724516284624,0.04224093,159.43,159.41,7.71]
[1724516285531,0.04224093,159.43,159.42,7.71]
[1724516286626,1.3131,159.51,159.42,7.71]
[1724516286826,1.3131,159.51,159.45,7.71]
[1724516287024,3.1329,159.53,159.47,10.8439]
[1724516287242,3.1329,159.53,159.47,13.91880819]
[1724516287729,0.04799678,159.52,159.48,0.04234832]
[1724516288036,0.04799678,159.52,159.48,3.17604832]
[1724516288936,0.04799678,159.52,159.49,3.1335]
[1724516289346,0.04799678,159.52,159.48,0.04234832]
[1724516289738,0.04799678,159.52,159.49,3.1335]
[1724516292844,0.04799678,159.52,159.5,3.1333]
[1724516293749,0.04799678,159.52,159.51,3.1332]
[1724516294045,10.8419,159.58,159.51,7.71]
[1724516294249,10.8419,159.58,159.53,3.1327]
[1724516295047,0.04214513,159.57,159.54,3.17979237]
[1724516297446,0.04214513,159.57,159.54,0.04729237]
[1724516297649,0.04214513,159.57,159.54,7.75729237]
[1724516297951,0.04214513,159.57,159.55,7.71]
[1724516298138,0.04214513,159.57,159.56,3.1322]
[1724516299751,0.04214513,159.57,159.55,3.1323]
[1724516299945,0.04214513,159.57,159.54,0.04729237]
[1724516302346,0.04214513,159.57,159.55,3.1323]
[1724516305352,0.04214513,159.57,159.54,0.04729237]
[1724516305353,0.04214513,159.57,159.56,10.8422]
[1724516307053,0.04214513,159.57,159.56,3.1322]
[1724516307554,0.04214513,159.57,159.54,3.17969237]
[1724516307755,0.04214513,159.57,159.54,0.04729237]
[1724516308458,0.04214513,159.57,159.54,3.17979237]
[1724516309554,0.04214513,159.57,159.55,3.1322]
[1724516309856,0.04214513,159.57,159.55,3.05348847]
[1724516310051,0.04214513,159.57,159.56,7.71]
[1724516310357,0.04214513,159.57,159.56,10.8422]
[1724516311883,1.25,159.64,159.59,3.1315]
[1724516312259,2.5849,159.71,159.64,3.1305]
[1724516312561,7.71,159.68,159.6,7.71]
[1724516312961,0.0477206,159.66,159.62,0.04215375]
[1724516313365,0.0477206,159.66,159.62,3.17295375]
[1724516314263,7.71,159.65,159.62,0.04215375]
[1724516314465,9.0377,159.65,159.62,0.04215375]
[1724516314963,12.1681,159.65,159.62,0.04215375]
[1724516315264,7.71,159.63,159.51,7.71]
[1724516315563,7.71,159.58,159.51,7.71]
[1724516316159,0.04324178,159.56,159.54,3.1324]
[1724516316351,0.04324178,159.56,159.53,0.04568443]
[1724516316352,0.04324178,159.56,159.53,7.75568443]
[1724516316753,0.04324178,159.56,159.54,3.1324]
[1724516316956,0.04324178,159.56,159.53,7.75568443]
[1724516317866,0.04324178,159.56,159.55,3.1324]
[1724516318870,0.04324178,159.56,159.55,6.25845977]
[1724516319368,0.04324178,159.56,159.55,3.12605977]
[1724516319571,0.04324178,159.56,159.53,7.75568443]
[1724516319767,0.04324178,159.56,159.53,10.88828443]
[1724516320565,0.04324178,159.56,159.54,3.1326]
[1724516320869,0.04324178,159.56,159.55,3.13576608]
[1724516321065,0.04324178,159.56,159.53,7.75568443]
[1724516321265,0.04324178,159.56,159.53,10.88838443]
[1724516321571,0.04324178,159.56,159.53,0.04568443]
[1724516322167,6.2562,159.77,159.55,38.55]
[1724516322370,1.2635,159.69,159.62,7.71]
[1724516322672,3.1302,159.66,159.62,7.71]
[1724516323169,3.17159642,159.66,159.62,0.04471654]
[1724516324063,0.04139642,159.66,159.62,0.04471654]
[1724516324365,0.04139642,159.66,159.62,7.75471654]
[1724516325074,0.04139642,159.66,159.62,10.88561654]
[1724516325268,0.04139642,159.66,159.62,7.75471654]
[1724516325679,0.04139642,159.66,159.65,3.1304]
[1724516327680,0.04139642,159.66,159.64,3.1306]
[1724516327873,0.04139642,159.66,159.65,7.71]
[1724516330481,0.04139642,159.66,159.63,3.1308]
[1724516330672,0.04139642,159.66,159.63,10.8408]
[1724516331277,0.04139642,159.66,159.64,3.1306]
[1724516331973,0.04139642,159.66,159.65,7.71]
[1724516333177,0.04139642,159.66,159.65,10.8404]
[1724516335679,0.04139642,159.66,159.65,3.1304]
[1724516335973,0.04139642,159.66,159.65,10.8404]
[1724516338374,25.04,159.92,159.65,10.8404]
[1724516338375,25.04,159.92,159.65,7.71]
[1724516338573,7.71,159.76,159.69,7.71]
[1724516338779,7.71,159.76,159.69,10.79393002]
[1724516338984,3.1286,159.75,159.69,13.92333002]
[1724516339278,0.04637048,159.74,159.7,0.04245521]
[1724516339972,0.04637048,159.74,159.7,3.17175521]
[1724516340373,0.04637048,159.74,159.7,0.04245521]
[1724516340569,0.04637048,159.74,159.71,3.1292]
[1724516340778,0.04637048,159.74,159.7,0.04245521]
[1724516340977,0.04637048,159.74,159.73,3.1288]
[1724516341578,6.2514,159.9,159.77,3.128]
[1724516341875,7.71,159.82,159.75,7.71]
[1724516342181,3.1273,159.81,159.77,3.128]
[1724516342380,7.71,159.82,159.77,3.08859956]
[1724516342584,0.04032778,159.81,159.8,3.1275]
[1724516342787,0.04014864,159.82,159.8,3.1275]
[1724516343082,0.04014864,159.82,159.79,6.29108651]
[1724516343275,0.04014864,159.82,159.79,0.04767324]
[1724516344071,0.04014864,159.82,159.8,3.1273]
[1724516344880,0.04014864,159.82,159.81,3.1273]
[1724516346285,0.04014864,159.82,159.79,0.04767324]
[1724516346972,0.04014864,159.82,159.8,3.1275]
[1724516348290,19.25014864,159.82,159.79,0.04767324]
[1724516348483,0.04014864,159.82,159.79,0.04767324]
[1724516348672,0.04014864,159.82,159.79,3.17527324]
[1724516349184,3.16724864,159.82,159.79,0.04767324]
[1724516350384,3.1274,159.81,159.79,0.04767324]
[1724516351586,3.16724864,159.82,159.79,0.04767324]
[1724516351786,0.04014864,159.82,159.79,0.04767324]
[1724516352387,3.16734864,159.82,159.79,0.04767324]
[1724516353587,0.04014864,159.82,159.79,0.04767324]
[1724516354003,0.04014864,159.82,159.79,3.17537324]
[1724516355191,0.04014864,159.82,159.79,0.04767324]
[1724516355889,0.04014864,159.82,159.81,3.1273]
[1724516356783,351.53327889,160.08,159.81,19.21]
[1724516356989,19.21,159.92,159.81,22.32952831]
[1724516357188,19.21,159.9,159.78,19.21]
[1724516357388,3.1264,159.86,159.78,22.38644602]
[1724516357588,1.2741,159.89,159.78,22.38644602]
[1724516357792,19.21,159.9,159.8,19.21]
[1724516357987,0.04767067,159.85,159.83,0.0431803]
[1724516358193,6.275,160.09,159.84,19.21]
[1724516358388,19.21,159.97,159.87,19.21]
[1724516358587,1.14889867,159.96,159.87,19.21]
[1724516359089,3.1247,159.94,159.87,19.21]
[1724516359289,0.04552548,159.92,159.89,0.04280735]
[1724516359591,0.04362578,159.92,159.89,0.04069409]
[1724516360193,0.04362578,159.92,159.89,3.16639409]
[1724516360998,0.04362578,159.92,159.89,0.04069409]
[1724516361407,3.16882578,159.92,159.89,0.04069409]
[1724516361597,0.04362578,159.92,159.89,0.04069409]
[1724516361999,3.16872578,159.92,159.89,0.04069409]
[1724516362499,0.04362578,159.92,159.89,0.04069409]
[1724516363000,19.21,159.91,159.89,0.04069409]
[1724516363727,19.21,159.91,159.8,3.20358977]
[1724516363900,3.1263,159.86,159.82,3.127]
[1724516364291,3.1263,159.86,159.79,19.21]
[1724516364698,0.04316612,159.84,159.81,0.04689971]
[1724516364897,0.04316612,159.84,159.82,3.13168329]
[1724516365500,0.04316612,159.84,159.81,0.04689971]
[1724516365801,3.16986612,159.84,159.81,0.04689971]
[1724516366001,0.04316612,159.84,159.81,0.04689971]
[1724516366400,3.16996612,159.84,159.81,0.04689971]
[1724516368118,0.04316612,159.84,159.81,0.04689971]
[1724516368503,3.1271,159.82,159.81,0.04689971]
[1724516371413,3.16996612,159.84,159.81,0.04689971]
[1724516371612,0.04316612,159.84,159.81,0.04689971]
[1724516372410,3.16986612,159.84,159.81,0.04689971]
[1724516372712,0.04316612,159.84,159.81,0.04689971]
[1724516375708,0.04316612,159.84,159.81,19.25689971]
[1724516376818,0.04316612,159.84,159.82,3.1271]
[1724516377021,0.04316612,159.84,159.81,19.25689971]
[1724516377319,0.04316612,159.84,159.83,22.3369]
[1724516378116,0.04316612,159.84,159.83,3.1269]
[1724516380343,1.2339,159.9,159.83,3.1269]
[1724516380531,1.2518,159.96,159.86,19.21]
[1724516380722,21.7432,159.96,159.86,19.21]
[1724516381323,2.5332,159.96,159.86,19.21]
[1724516381521,0.04158762,159.93,159.89,0.04165423]
[1724516382324,3.1253,159.92,159.89,0.04165423]
[1724516382819,3.1255,159.91,159.89,0.04165423]
[1724516383225,0.04158762,159.93,159.89,0.04165423]
[1724516384424,3.1255,159.9,159.89,0.04165423]
[1724516385028,3.1253,159.91,159.89,0.04165423]
[1724516387231,0.04158762,159.93,159.89,0.04165423]
[1724516387722,3.1255,159.91,159.89,0.04165423]
[1724516388332,3.1252,159.92,159.89,0.04165423]
[1724516388521,0.04158762,159.93,159.89,0.04165423]
[1724516388719,3.1253,159.91,159.89,0.04165423]
[1724516389328,3.1255,159.9,159.89,0.04165423]
[1724516390321,3.1254,159.91,159.89,0.04165423]
[1724516391029,3.1255,159.9,159.89,0.04165423]
[1724516392425,0.04158762,159.93,159.89,0.04165423]
[1724516393226,3.1252,159.92,159.89,0.04165423]
[1724516393421,0.04158762,159.93,159.89,0.04165423]
[1724516394221,3.1255,159.9,159.89,0.04165423]
[1724516398930,2.5332,159.96,159.84,3.12714878]
[1724516398931,3.1265,159.85,159.84,3.12714878]
[1724516399133,3.1265,159.85,159.83,7.69]
[1724516399736,3.1265,159.85,159.84,3.16402701]
[1724516400236,10.78808374,159.91,159.84,10.85402701]
[1724516400237,0.04031528,159.86,159.84,10.85402701]
[1724516400837,0.04031528,159.86,159.84,7.69]
[1724516401339,7.69,159.95,159.84,38.45]
[1724516401539,7.69,159.95,159.88,7.69]
[1724516402228,3.1253,159.91,159.9,0.03992579]
[1724516402840,3.1267,159.84,159.77,3.9249]
[1724516403050,3.1267,159.84,159.8,19.2]
[1724516403234,3.1267,159.84,159.8,22.3273]
[1724516403433,3.1267,159.84,159.8,19.2]
[1724516403834,3.16868868,159.84,159.8,19.24206437]
[1724516404341,3.16868868,159.84,159.81,3.1273]
[1724516405140,3.16868868,159.84,159.8,22.36946437]
[1724516406837,3.16868868,159.84,159.81,3.06364944]
[1724516408136,3.1269,159.83,159.8,22.36946437]
[1724516408336,0.04198868,159.84,159.81,2.86980161]
[1724516408641,0.04198868,159.84,159.82,6.04357679]
[1724516408845,0.04198868,159.84,159.82,3.17377518]
[1724516409040,0.04198868,159.84,159.8,19.24206437]
[1724516409041,3.1272,159.82,159.8,19.24206437]
[1724516409341,0.04198868,159.84,159.81,2.87084333]
[1724516409530,3.1269,159.83,159.81,3.0746631]
[1724516409838,0.04198868,159.84,159.81,3.0746631]
[1724516410341,0.04198868,159.84,159.81,6.2018631]
[1724516410541,0.04198868,159.84,159.82,19.2]
[1724516410742,0.04198868,159.84,159.82,22.327]
[1724516415241,0.04198868,159.84,159.82,19.2]
[1724516416649,3.16868868,159.84,159.82,19.2]
[1724516417549,0.04198868,159.84,159.82,19.2]
[1724516417940,3.16868868,159.84,159.82,19.2]
[1724516420153,3.1269,159.83,159.82,19.2]
[1724516420341,0.04198868,159.84,159.8,0.04206437]
[1724516422349,3.1273,159.81,159.8,0.04206437]
[1724516423552,3.1273,159.81,159.8,7.73206437]
[1724516424348,0.04198868,159.84,159.8,7.73206437]
[1724516424545,0.04198868,159.84,159.82,7.69]
[1724516425148,0.04198868,159.84,159.83,7.69]
[1724516425349,31.2469,160.01,159.83,10.55915347]
[1724516425546,8.9944,159.94,159.87,7.69]
[1724516426344,3.1257,159.89,159.87,7.69]
[1724516426580,0.04515495,159.92,159.87,7.69]
[1724516426867,0.04515495,159.92,159.89,7.69]
[1724516427556,3.1255,159.9,159.89,7.69]
[1724516427956,0.04515495,159.92,159.89,7.69]
[1724516428352,0.04515495,159.92,159.9,7.69]
[1724516428552,0.04515495,159.92,159.89,19.25197498]
[1724516429250,5.66901748,160.11,159.95,3.1245]
[1724516429460,20.35854169,160.04,159.94,19.21]
[1724516429655,1.14854169,160.03,159.94,19.21]
[1724516429849,1.14854169,160.03,159.93,13.0]
[1724516430256,0.04529062,160.0,159.96,0.04005675]
[1724516430759,3.1241,159.97,159.96,0.04005675]
[1724516431363,0.04529062,160.0,159.96,0.04005675]
[1724516434166,3.124,159.98,159.96,0.04005675]
[1724516434363,0.04529062,160.0,159.96,0.04005675]
[1724516435163,3.16899062,160.0,159.96,0.04005675]
[1724516436764,0.04529062,160.0,159.96,0.04005675]
[1724516436958,19.25529062,160.0,159.96,0.04005675]
[1724516437161,3.1241,159.97,159.96,0.04005675]
[1724516438964,19.25529062,160.0,159.96,0.04005675]
[1724516438965,3.1239,159.99,159.96,0.04005675]
[1724516439166,0.04529062,160.0,159.96,0.04005675]
[1724516440073,3.1241,159.97,159.96,0.04005675]
[1724516440457,0.04529062,160.0,159.96,0.04005675]
[1724516441362,3.1241,159.97,159.96,0.04005675]
[1724516445472,0.04529062,160.0,159.96,0.04005675]
[1724516445668,25.4513,160.16,159.96,0.04005675]
[1724516445669,11.0615028,160.14,159.99,19.21]
[1724516445870,19.21,160.08,159.87,3.7539]
[1724516446184,1.14797959,160.07,159.97,19.21]
[1724516446487,3.1238,159.99,159.97,19.21]
[1724516446681,0.04788451,160.0,159.97,19.21]
[1724516446871,0.04498943,160.0,159.97,19.25761085]
[1724516447368,3.16858943,160.0,159.97,19.25761085]
[1724516448273,3.1238,159.99,159.97,19.25761085]
[1724516448465,0.04498943,160.0,159.97,19.25761085]
[1724516449179,0.04498943,160.0,159.97,0.04761085]
[1724516450369,3.1239,159.99,159.97,0.04761085]
[1724516450570,0.04498943,160.0,159.97,0.04761085]
[1724516450765,3.1239,159.98,159.97,0.04761085]
[1724516451471,0.04498943,160.0,159.97,0.04761085]
[1724516452272,3.16858943,160.0,159.97,0.04761085]
[1724516452671,0.04498943,160.0,159.97,0.04761085]
[1724516452977,0.04498943,160.0,159.97,3.17171085]
[1724516453871,0.04498943,160.0,159.98,3.1239]
[1724516454278,0.04498943,160.0,159.98,22.3339]
[1724516455173,0.04498943,160.0,159.77,6.256]
[1724516455378,1.14849105,160.03,159.86,19.21]
[1724516455579,2.4904,160.06,159.86,22.28271751]
[1724516455580,19.21,159.98,159.86,22.28271751]
[1724516455876,19.21,159.96,159.86,19.21]
[1724516456300,0.04038491,159.93,159.89,0.04326332]
[1724516456774,3.1253,159.92,159.89,0.04326332]
[1724516456976,0.04038491,159.93,159.9,19.21]
[1724516457474,3.16548491,159.93,159.9,19.21]
[1724516457981,3.16548491,159.93,159.89,0.04326332]
[1724516459870,0.04038491,159.93,159.89,0.04326332]
[1724516460075,0.04038491,159.93,159.9,19.21]
[1724516460380,0.04038491,159.93,159.92,19.21]
[1724516462005,0.04038491,159.93,159.92,22.3351]
[1724516462385,0.04038491,159.93,159.92,19.21]
[1724516463381,3.1245,159.96,159.92,19.21]
[1724516463587,34.82833976,160.18,159.94,19.21]
[1724516463773,21.61446991,160.06,159.94,22.37003219]
[1724516463977,1.14826991,160.05,159.94,22.37003219]
[1724516464185,1.14826991,160.05,159.94,25.49473219]
[1724516464388,0.04196773,160.01,159.98,0.0444514]
[1724516464778,3.1238,159.99,159.98,0.0444514]
[1724516470285,1.2992,160.0,159.9,22.3355]
[1724516470286,3.1248,159.94,159.9,22.3355]
[1724516470592,20.5092,160.0,159.9,22.3355]
[1724516470980,20.5092,160.0,159.9,19.21]
[1724516471288,0.04244325,159.97,159.93,0.0437926]
[1724516473088,0.04244325,159.97,159.94,19.21]
[1724516473486,3.1237,160.0,159.96,19.21]
[1724516474582,3.16377484,160.0,159.96,19.25571599]
[1724516475213,3.16377484,160.0,159.96,22.38001599]
[1724516477091,0.04007484,160.0,159.97,3.1241]
[1724516477285,1.2032,160.08,159.98,19.21]
[1724516477486,1.2032,160.08,160.04,19.21]
[1724516478191,3.1224,160.07,160.04,19.21]
[1724516478487,3.16761233,160.07,160.04,19.25103861]
[1724516479789,0.04521233,160.07,160.04,19.25103861]
[1724516481082,3.1224,160.06,160.04,19.25103861]
[1724516481986,3.1226,160.05,160.04,19.25103861]
[1724516488124,3.1224,160.06,160.04,19.25103861]
[1724516489295,6.2346,160.33,160.05,41.27065402]
[1724516489495,203.1653152,160.46,159.83,18.84]
[1724516489496,2.4236,160.35,160.26,19.21]
[1724516489690,2.4236,160.35,160.22,19.21]
[1724516489691,3.1183,160.28,160.22,19.21]
[1724516490191,0.04295047,160.27,160.23,0.04461072]
[1724516490388,0.04295047,160.27,160.17,1.2776]
[1724516490389,3.68307114,160.29,160.26,19.21]
[1724516490586,0.03963316,160.27,160.26,19.21]
[1724516490789,3.68307114,160.29,160.27,3.1183]
[1724516490995,3.68307114,160.29,160.26,19.21]
[1724516491191,3.19760059,160.46,160.24,19.21]
[1724516491192,6.51452586,160.53,160.28,19.21]
[1724516491394,20.4281,160.37,160.26,19.21]
[1724516491703,1.2671,160.36,160.26,19.21]
[1724516491913,3.1174,160.32,160.3,0.04802514]
[1724516492112,0.04195765,160.33,160.3,0.04802514]
[1724516492405,3.1175,160.31,160.3,0.04802514]
[1724516492600,0.04195765,160.33,160.2,19.21]
[1724516492800,19.21,160.32,160.2,19.21]
[1724516493011,19.21,160.33,160.22,19.21]
[1724516493204,22.35592734,160.33,160.22,19.21]
[1724516493399,3.1183,160.27,160.22,19.21]
[1724516493598,0.04227359,160.26,160.23,0.040382]
[1724516493804,0.04114488,160.26,160.23,0.04503169]
[1724516494213,3.1189,160.24,160.23,0.04503169]
[1724516495105,0.04114488,160.26,160.23,0.04503169]
[1724516495912,3.1189,160.24,160.23,0.04503169]
[1724516505011,0.04114488,160.26,160.23,0.04503169]
[1724516505215,0.04114488,160.26,160.25,23.95]
[1724516505518,1.14613837,160.34,160.25,23.95]
[1724516505718,1.14613837,160.33,160.25,23.95]
[1724516505907,1.14613837,160.32,160.25,23.95]
[1724516506108,3.1174,160.32,160.27,23.95]
[1724516506310,0.04110844,160.31,160.3,23.95]
[1724516507712,0.04110844,160.31,160.3,27.0677]
[1724516508019,1.14582894,160.38,160.31,3.04955978]
[1724516508217,23.95,160.46,160.34,23.95]
[1724516508218,2.621,160.44,160.34,23.95]
[1724516508416,1.1456464,160.43,160.34,23.95]
[1724516508617,1.1456464,160.42,160.34,23.95]
[1724516508817,1.1456464,160.41,160.36,0.0441549]
[1724516509120,3.1165,160.37,160.36,0.0441549]
[1724516509418,26.571,160.44,160.36,0.0441549]
[1724516509620,1.14558591,160.43,160.36,0.0441549]
[1724516509820,3.1163,160.37,160.36,0.0441549]
[1724516510015,4.26188591,160.37,160.36,0.0441549]
[1724516510949,3.1163,160.37,160.36,0.0441549]
[1724516511118,4.26209782,160.37,160.36,0.0441549]
[1724516515118,4.26190138,160.37,160.36,0.0441549]
[1724516515318,3.1163,160.37,160.36,0.0441549]
[1724516515825,3.1162,160.38,160.36,0.0441549]
[1724516516030,2.621,160.44,160.36,0.0441549]
[1724516516325,1.14545753,160.43,160.36,0.0441549]
[1724516516525,1.14545753,160.42,160.36,0.0441549]
[1724516516828,3.1162,160.38,160.36,0.0441549]
[1724516517239,3.07123737,160.46,160.37,23.95]
[1724516517431,2.28236819,160.66,160.44,23.95]
[1724516517627,2.28236819,160.66,160.53,0.04470298]
[1724516517628,1.2249,160.57,160.53,0.04470298]
[1724516517821,3.113,160.54,160.53,0.04572241]
[1724516518028,1.2249,160.57,160.53,0.04572241]
[1724516518929,3.1127,160.56,160.53,0.04572241]
[1724516519122,1.2249,160.57,160.53,0.04572241]
[1724516519324,6.2192,160.72,160.53,0.04572241]
[1724516519325,23.95,160.66,160.54,23.95]
[1724516519531,23.95,160.66,160.44,27.05520641]
[1724516519532,26.31908587,160.63,160.57,0.04143158]
[1724516519721,25.1749,160.63,160.58,0.04097589]
[1724516519924,25.1749,160.63,160.59,0.04461598]
[1724516520322,23.95,160.71,160.59,0.04461598]
[1724516520528,1.14385553,160.7,160.63,0.04570971]
[1724516520848,23.95,160.64,160.53,1.2008]
[1724516521024,23.95,160.61,160.53,1.2008]
[1724516521227,3.1126,160.57,160.53,1.2008]
[1724516521427,1.3262,160.62,160.53,1.2008]
[1724516521832,3.09075579,160.7,160.53,1.2008]
[1724516521833,0.04162504,160.59,160.56,0.04440063]
[1724516522133,0.04553841,160.59,160.56,0.04685826]
[1724516522932,3.1125,160.57,160.56,0.04685826]
[1724516523532,23.99553841,160.59,160.37,24.94]
[1724516523731,23.95,160.56,160.45,1.2755]
[1724516524128,3.1136,160.51,160.45,1.2755]
[1724516524330,23.95,160.56,160.45,1.2755]
[1724516524536,0.04689774,160.52,160.49,0.04118146]
[1724516524835,3.1138,160.51,160.49,0.04118146]
[1724516525036,0.04689774,160.52,160.49,0.04118146]
[1724516525229,3.1136,160.51,160.49,0.04118146]
[1724516525428,0.04689774,160.52,160.49,0.04118146]
[1724516525650,23.95,160.64,160.51,23.95]
[1724516525934,3.1129,160.56,160.51,23.95]
[1724516526133,3.16740765,160.66,160.48,23.95]
[1724516526326,23.95,160.57,160.45,1.2755]
[1724516526531,1.2007,160.56,160.45,1.2755]
[1724516526730,1.2007,160.56,160.49,0.0439278]
[1724516526731,0.04597972,160.53,160.49,0.0439278]
[1724516526932,3.1138,160.5,160.49,0.0439278]
[1724516528936,3.1147,160.46,160.4,23.95]
[1724516529332,3.1148,160.45,160.4,23.95]
[1724516529754,25.1731,160.52,160.4,23.95]
[1724516529934,0.04368571,160.48,160.44,0.04234361]
[1724516530736,23.95,160.47,160.24,24.9]
[1724516530933,23.95,160.44,160.33,23.95]
[1724516531340,23.95,160.47,160.35,23.95]
[1724516531537,23.95,160.47,160.37,23.95]
[1724516531741,0.04221476,160.44,160.4,0.04458157]
[1724516531943,0.04066406,160.44,160.4,0.04458157]
[1724516532137,3.1156,160.41,160.4,0.04458157]
[1724516532339,0.04066406,160.44,160.4,0.04458157]
[1724516533735,3.1152,160.43,160.4,0.04458157]
[1724516534149,0.04066406,160.44,160.4,23.99458157]
[1724516535046,0.04066406,160.44,160.42,23.95]
[1724516535544,1.2231,160.52,160.42,23.95]
[1724516535738,1.2231,160.52,160.37,23.95]
[1724516535739,1.2231,160.52,160.46,23.95]
[1724516536135,3.1138,160.51,160.46,23.95]
[1724516536337,1.2899,160.55,160.46,23.95]
[1724516536534,0.04105671,160.52,160.49,0.04120535]
[1724516536738,3.1138,160.51,160.49,0.04120535]
[1724516536942,0.04105671,160.52,160.49,0.04120535]
[1724516537748,3.1136,160.51,160.49,0.04120535]
[1724516538541,0.04105671,160.52,160.49,0.04120535]
[1724516538763,23.95,160.62,160.51,23.95]
[1724516538954,2.6132,160.63,160.51,27.0636]
[1724516539146,2.6132,160.63,160.51,23.95]
[1724516539545,2.6132,160.63,160.53,23.95]
[1724516539754,0.04607893,160.6,160.56,0.04017807]
[1724516539943,3.1125,160.57,160.56,0.04017807]
[1724516544957,23.95,160.59,160.48,23.95]
[1724516545349,3.1136,160.52,160.48,23.95]
[1724516545656,23.95,160.57,160.46,23.95]
[1724516545856,0.04689568,160.53,160.5,0.04535363]
[1724516546350,0.04689568,160.53,160.5,3.15905363]
[1724516546552,0.04689568,160.53,160.5,27.10905363]
[1724516546853,0.04689568,160.53,160.51,1.2084]
[1724516547449,0.04689568,160.53,160.5,0.04535363]
[1724516548054,0.04689568,160.53,160.5,23.99535363]
[1724516549654,1.242,160.62,160.5,23.99535363]
[1724516549858,3.1125,160.57,160.53,23.95]
[1724516550359,3.1127,160.56,160.53,23.95]
[1724516550558,0.04765323,160.56,160.53,0.04416722]
[1724516551357,3.113,160.54,160.53,0.04416722]
[1724516551865,3.1129,160.55,160.53,0.04416722]
[1724516552357,3.16035323,160.56,160.53,0.04416722]
[1724516552557,0.04765323,160.56,160.53,0.04416722]